[Event "Early-Titled-Tuesday-Blitz-April-16-2024"]
[Site "Chess.com"]
[Date "2024.04.16"]
[Round "1"]
[White "Szparu"]
[Black "Jojo_898"]
[Result "1-0"]
[WhiteElo "2828"]
[BlackElo "2470"]
[TimeControl "180+1"]
[EndTime "8:07:04 PDT"]
[Termination "Szparu won by resignation"]

1. e4 {[%clk 0:03:00.4]} 1... d6 {[%clk 0:02:59.3]} 2. d4 {[%clk 0:03:00]} 2...
Nf6 {[%clk 0:02:59.3]} 3. Bd3 {[%clk 0:02:58.9]} 3... g6 {[%clk 0:02:58.8]} 4.
Nf3 {[%clk 0:02:58.9]} 4... Bg7 {[%clk 0:02:59.1]} 5. O-O {[%clk 0:02:59.3]}
5... O-O {[%clk 0:02:59.4]} 6. Re1 {[%clk 0:02:59.9]} 6... c6 {[%clk 0:02:54.6]}
7. Nbd2 {[%clk 0:02:59.3]} 7... Nbd7 {[%clk 0:02:54]} 8. c3 {[%clk 0:02:59.3]}
8... e5 {[%clk 0:02:53.9]} 9. h3 {[%clk 0:02:59.5]} 9... Nh5 {[%clk 0:02:51.1]}
10. Nc4 {[%clk 0:02:58.7]} 10... Qe7 {[%clk 0:02:47.5]} 11. a4 {[%clk
0:02:58.6]} 11... a6 {[%clk 0:02:44]} 12. a5 {[%clk 0:02:58.3]} 12... Rb8 {[%clk
0:02:42.7]} 13. b3 {[%clk 0:02:58.6]} 13... Nf4 {[%clk 0:02:36.5]} 14. dxe5
{[%clk 0:02:56.9]} 14... dxe5 {[%clk 0:02:35.8]} 15. Bxf4 {[%clk 0:02:49.1]}
15... exf4 {[%clk 0:02:35.4]} 16. e5 {[%clk 0:02:50]} 16... b5 {[%clk
0:02:29.7]} 17. axb6 {[%clk 0:02:48.6]} 17... Nxb6 {[%clk 0:02:29.6]} 18. Nd6
{[%clk 0:02:42.9]} 18... Nd5 {[%clk 0:02:25.5]} 19. Qc2 {[%clk 0:02:37.2]} 19...
Nc7 {[%clk 0:02:12.8]} 20. Nd4 {[%clk 0:02:33.4]} 20... Bd7 {[%clk 0:02:07.5]}
21. Qd2 {[%clk 0:02:13.1]} 21... Bxe5 {[%clk 0:02:04.7]} 22. Qxf4 {[%clk
0:01:52.4]} 22... Qxd6 {[%clk 0:01:56.8]} 23. Qxe5 {[%clk 0:01:52.4]} 23... Qxe5
{[%clk 0:01:57.5]} 24. Rxe5 {[%clk 0:01:53.1]} 24... Nd5 {[%clk 0:01:54.1]} 25.
Rxa6 {[%clk 0:01:42.8]} 25... Nxc3 {[%clk 0:01:52.9]} 26. Ra7 {[%clk 0:01:41]}
26... Rfd8 {[%clk 0:01:48.4]} 27. Bc4 {[%clk 0:01:40.9]} 27... Kf8 {[%clk
0:01:20.5]} 28. Kh2 {[%clk 0:01:05.4]} 28... Be8 {[%clk 0:01:10.6]} 29. Rxe8+
{[%clk 0:01:01.6]} 29... Rxe8 {[%clk 0:01:08.9]} 30. Rxf7+ {[%clk 0:01:01.3]}
30... Kg8 {[%clk 0:01:08.5]} 31. Rf3+ {[%clk 0:00:57]} 31... Kg7 {[%clk
0:01:08.8]} 32. Rxc3 {[%clk 0:00:56.8]} 32... Kh6 {[%clk 0:01:05.7]} 33. Nxc6
{[%clk 0:00:56.7]} 33... Rbc8 {[%clk 0:01:05]} 34. Nb4 {[%clk 0:00:54.1]} 34...
Rf8 {[%clk 0:01:03.9]} 35. f3 {[%clk 0:00:53.6]} 35... Rcd8 {[%clk 0:01:04.1]}
36. Nd5 {[%clk 0:00:53.6]} 36... Rf5 {[%clk 0:01:02.2]} 37. Rd3 {[%clk
0:00:47.9]} 37... Ra8 {[%clk 0:00:59.1]} 38. b4 {[%clk 0:00:45.6]} 38... Ra1
{[%clk 0:00:58.2]} 39. b5 {[%clk 0:00:45.1]} 39... Rc1 {[%clk 0:00:58.6]} 40.
Rb3 {[%clk 0:00:30.9]} 40... Rxc4 {[%clk 0:00:52.8]} 41. Ne3 {[%clk 0:00:31.2]}
41... Rc7 {[%clk 0:00:44.2]} 42. Nxf5+ {[%clk 0:00:31.3]} 42... gxf5 {[%clk
0:00:45.1]} 43. b6 {[%clk 0:00:31.9]} 43... Rb7 {[%clk 0:00:45.5]} 44. Kg3
{[%clk 0:00:32.3]} 44... Kg5 {[%clk 0:00:46.2]} 45. h4+ {[%clk 0:00:32.7]} 45...
Kg6 {[%clk 0:00:45.4]} 46. Kf4 {[%clk 0:00:33.6]} 46... Kf6 {[%clk 0:00:44.7]}
47. g3 {[%clk 0:00:33]} 47... h6 {[%clk 0:00:42]} 48. h5 {[%clk 0:00:32.9]}
48... Ke6 {[%clk 0:00:40.5]} 49. Rb5 {[%clk 0:00:33.4]} 49... Ke7 {[%clk
0:00:37.4]} 50. Kxf5 {[%clk 0:00:33.2]} 50... Kd6 {[%clk 0:00:36.6]} 51. Kg6
{[%clk 0:00:33.3]} 51... Kc6 {[%clk 0:00:37.2]} 52. Rb1 {[%clk 0:00:33.4]} 1-0

[Event "Early-Titled-Tuesday-Blitz-April-16-2024"]
[Site "Chess.com"]
[Date "2024.04.16"]
[Round "1"]
[White "MIss_MIaMI"]
[Black "xasid81"]
[Result "1-0"]
[WhiteElo "2363"]
[BlackElo "2631"]
[TimeControl "180+1"]
[EndTime "8:07:06 PDT"]
[Termination "MIss_MIaMI won by resignation"]

1. e4 {[%clk 0:03:00.9]} 1... e6 {[%clk 0:02:57.1]} 2. d4 {[%clk 0:02:59.7]}
2... d5 {[%clk 0:02:58]} 3. exd5 {[%clk 0:03:00.6]} 3... exd5 {[%clk 0:02:58.2]}
4. Qf3 {[%clk 0:03:01.3]} 4... Nc6 {[%clk 0:02:55.1]} 5. c3 {[%clk 0:03:00.5]}
5... Be6 {[%clk 0:02:53.8]} 6. Bd3 {[%clk 0:02:59.2]} 6... Qf6 {[%clk
0:02:53.6]} 7. Bf4 {[%clk 0:02:47.8]} 7... O-O-O {[%clk 0:02:52.6]} 8. Nd2
{[%clk 0:02:19.9]} 8... Bd6 {[%clk 0:02:49.9]} 9. Ne2 {[%clk 0:02:12.2]} 9...
Bxf4 {[%clk 0:02:48.2]} 10. Qxf4 {[%clk 0:02:12.8]} 10... Qxf4 {[%clk
0:02:47.6]} 11. Nxf4 {[%clk 0:02:13.7]} 11... Nf6 {[%clk 0:02:47.1]} 12. f3
{[%clk 0:02:05.7]} 12... Bd7 {[%clk 0:02:45.7]} 13. O-O-O {[%clk 0:02:02.8]}
13... Ne7 {[%clk 0:02:44.5]} 14. Nb3 {[%clk 0:01:59.9]} 14... Ng6 {[%clk
0:02:37.8]} 15. Nxg6 {[%clk 0:01:32.4]} 15... hxg6 {[%clk 0:02:38.7]} 16. Rde1
{[%clk 0:01:31.9]} 16... Rde8 {[%clk 0:02:31.9]} 17. h3 {[%clk 0:01:31.7]} 17...
b6 {[%clk 0:02:31.2]} 18. Ba6+ {[%clk 0:01:30]} 18... Kd8 {[%clk 0:02:29.8]} 19.
Kd2 {[%clk 0:01:29.6]} 19... c6 {[%clk 0:02:22.7]} 20. Bd3 {[%clk 0:01:28.4]}
20... Nh5 {[%clk 0:02:20.6]} 21. Rxe8+ {[%clk 0:01:21.2]} 21... Rxe8 {[%clk
0:02:19.6]} 22. Re1 {[%clk 0:01:21.7]} 22... Rxe1 {[%clk 0:02:19.2]} 23. Kxe1
{[%clk 0:01:22.6]} 23... Nf4 {[%clk 0:02:18.8]} 24. Bf1 {[%clk 0:01:23]} 24...
a5 {[%clk 0:02:17.4]} 25. Kf2 {[%clk 0:01:21.7]} 25... g5 {[%clk 0:01:58.4]} 26.
Ke3 {[%clk 0:01:15.5]} 26... Bf5 {[%clk 0:01:56.5]} 27. Nc1 {[%clk 0:01:14.2]}
27... Bb1 {[%clk 0:01:54.3]} 28. a3 {[%clk 0:01:12]} 28... Bg6 {[%clk
0:01:54.2]} 29. g3 {[%clk 0:01:04.2]} 29... Nh5 {[%clk 0:01:51.2]} 30. Kf2
{[%clk 0:01:01.5]} 30... Kc7 {[%clk 0:01:49]} 31. Nd3 {[%clk 0:01:01.1]} 31...
Bxd3 {[%clk 0:01:46.4]} 32. Bxd3 {[%clk 0:01:02]} 32... Nf6 {[%clk 0:01:44.7]}
33. a4 {[%clk 0:00:57.1]} 33... Kd6 {[%clk 0:01:44.5]} 34. b4 {[%clk 0:00:56.3]}
34... Nd7 {[%clk 0:01:42.7]} 35. Ke3 {[%clk 0:00:53.3]} 35... c5 {[%clk
0:01:38.6]} 36. dxc5+ {[%clk 0:00:49.8]} 36... bxc5 {[%clk 0:01:39.5]} 37. b5
{[%clk 0:00:49.3]} 37... Nb6 {[%clk 0:01:35.5]} 38. Bc2 {[%clk 0:00:48.9]} 38...
Nc4+ {[%clk 0:01:33.9]} 39. Ke2 {[%clk 0:00:39.2]} 39... Ke5 {[%clk 0:01:32.6]}
40. Bb3 {[%clk 0:00:38.9]} 40... Nb6 {[%clk 0:01:31.9]} 41. Ke3 {[%clk
0:00:36.9]} 41... d4+ {[%clk 0:01:28.6]} 42. cxd4+ {[%clk 0:00:37.6]} 42...
cxd4+ {[%clk 0:01:29.5]} 43. Kd3 {[%clk 0:00:37.7]} 43... f5 {[%clk 0:01:26.3]}
44. f4+ {[%clk 0:00:31.8]} 44... gxf4 {[%clk 0:01:27.2]} 45. gxf4+ {[%clk
0:00:32.7]} 45... Kxf4 {[%clk 0:01:27.6]} 46. Kxd4 {[%clk 0:00:33.4]} 46... Kg3
{[%clk 0:01:26.8]} 47. Kc5 {[%clk 0:00:33.1]} 47... Nd7+ {[%clk 0:01:25]} 48.
Kd6 {[%clk 0:00:31.7]} 48... Nb6 {[%clk 0:01:23.6]} 49. Kc7 {[%clk 0:00:31.3]}
49... Kxh3 {[%clk 0:01:03.9]} 50. Kxb6 {[%clk 0:00:30.8]} 50... g5 {[%clk
0:01:04.6]} 51. Kxa5 {[%clk 0:00:27.2]} 51... g4 {[%clk 0:01:05]} 52. Be6 {[%clk
0:00:25.1]} 52... f4 {[%clk 0:01:03.7]} 53. b6 {[%clk 0:00:23.5]} 53... f3
{[%clk 0:01:04.2]} 54. b7 {[%clk 0:00:21.4]} 54... f2 {[%clk 0:01:03.4]} 55. Bc4
{[%clk 0:00:21]} 55... g3 {[%clk 0:01:03.6]} 56. b8=Q {[%clk 0:00:21]} 56... g2
{[%clk 0:01:04.3]} 57. Qh8+ {[%clk 0:00:20.4]} 57... Kg3 {[%clk 0:01:04.5]} 58.
Qg7+ {[%clk 0:00:20.6]} 58... Kh2 {[%clk 0:01:04.9]} 59. Qh6+ {[%clk 0:00:21.3]}
59... Kg1 {[%clk 0:01:05.3]} 60. Qe3 {[%clk 0:00:20.7]} 1-0

[Event "Early-Titled-Tuesday-Blitz-April-16-2024"]
[Site "Chess.com"]
[Date "2024.04.16"]
[Round "1"]
[White "kacperkarwowski"]
[Black "Anton_Demchenko"]
[Result "0-1"]
[WhiteElo "2522"]
[BlackElo "3020"]
[TimeControl "180+1"]
[EndTime "8:07:07 PDT"]
[Termination "Anton_Demchenko won on time"]

1. e4 {[%clk 0:03:00.1]} 1... e5 {[%clk 0:02:59.9]} 2. Nf3 {[%clk 0:03:00.1]}
2... Nc6 {[%clk 0:03:00.6]} 3. d4 {[%clk 0:02:59.8]} 3... exd4 {[%clk
0:03:00.7]} 4. Nxd4 {[%clk 0:03:00.7]} 4... Bc5 {[%clk 0:03:00.8]} 5. Nxc6
{[%clk 0:02:56.2]} 5... bxc6 {[%clk 0:03:00.6]} 6. Nc3 {[%clk 0:02:48.2]} 6...
Qh4 {[%clk 0:02:57]} 7. Qf3 {[%clk 0:02:42.8]} 7... Rb8 {[%clk 0:02:24.8]} 8.
Bc4 {[%clk 0:02:17.8]} 8... Qf6 {[%clk 0:02:22.3]} 9. Qxf6 {[%clk 0:02:07]} 9...
Nxf6 {[%clk 0:02:21]} 10. O-O {[%clk 0:01:38.6]} 10... d6 {[%clk 0:02:20.6]} 11.
Bb3 {[%clk 0:01:26.5]} 11... Ba6 {[%clk 0:02:14.6]} 12. Re1 {[%clk 0:01:10.5]}
12... Ng4 {[%clk 0:02:15.1]} 13. Nd1 {[%clk 0:01:03.8]} 13... O-O {[%clk
0:02:14.5]} 14. h3 {[%clk 0:01:02]} 14... Ne5 {[%clk 0:02:13.1]} 15. Be3 {[%clk
0:00:59.5]} 15... Bb6 {[%clk 0:02:08.5]} 16. Bxb6 {[%clk 0:00:27.5]} 16... axb6
{[%clk 0:02:08.2]} 17. Ne3 {[%clk 0:00:28]} 17... b5 {[%clk 0:01:55.5]} 18. f4
{[%clk 0:00:15.1]} 18... Nd7 {[%clk 0:01:55.6]} 19. c3 {[%clk 0:00:14.5]} 19...
Rfe8 {[%clk 0:01:52.3]} 20. Bc2 {[%clk 0:00:14.9]} 20... Bb7 {[%clk 0:01:51.4]}
21. Ng4 {[%clk 0:00:15.1]} 21... Ra8 {[%clk 0:01:24.4]} 22. a3 {[%clk
0:00:15.1]} 22... Nb6 {[%clk 0:01:19]} 23. Bd3 {[%clk 0:00:09.7]} 23... Na4
{[%clk 0:01:17.6]} 24. Re2 {[%clk 0:00:09.9]} 24... Nc5 {[%clk 0:01:11.9]} 25.
Bc2 {[%clk 0:00:09.5]} 25... Bc8 {[%clk 0:01:01.5]} 26. Nf2 {[%clk 0:00:09.6]}
26... Be6 {[%clk 0:01:01.6]} 27. Rae1 {[%clk 0:00:09.6]} 27... Bb3 {[%clk
0:00:54.4]} 28. Bxb3 {[%clk 0:00:09.1]} 28... Nxb3 {[%clk 0:00:55.3]} 29. e5
{[%clk 0:00:06.8]} 29... d5 {[%clk 0:00:53.5]} 30. Nd3 {[%clk 0:00:06.8]} 30...
c5 {[%clk 0:00:48.8]} 31. Kf2 {[%clk 0:00:06.7]} 31... Rac8 {[%clk 0:00:36.3]}
32. Kf3 {[%clk 0:00:06.2]} 32... d4 {[%clk 0:00:36.9]} 33. Kf2 {[%clk
0:00:03.6]} 33... c4 {[%clk 0:00:36.2]} 34. Nb4 {[%clk 0:00:03.3]} 34... d3
{[%clk 0:00:36.8]} 35. Re3 {[%clk 0:00:03.4]} 35... c5 {[%clk 0:00:37]} 36. Nd5
{[%clk 0:00:03.5]} 36... Kf8 {[%clk 0:00:34.6]} 37. Rd1 {[%clk 0:00:03.5]} 37...
Red8 {[%clk 0:00:34]} 38. Nb6 {[%clk 0:00:02.1]} 38... Rc6 {[%clk 0:00:32.2]}
39. e6 {[%clk 0:00:02.2]} 39... fxe6 {[%clk 0:00:31.5]} 0-1

[Event "Early-Titled-Tuesday-Blitz-April-16-2024"]
[Site "Chess.com"]
[Date "2024.04.16"]
[Round "1"]
[White "Iunusovnuriddin"]
[Black "Yan_Dyomin2010"]
[Result "0-1"]
[WhiteElo "2347"]
[BlackElo "2648"]
[TimeControl "180+1"]
[EndTime "8:07:08 PDT"]
[Termination "Yan_Dyomin2010 won by resignation"]

1. e4 {[%clk 0:03:00]} 1... c5 {[%clk 0:03:00.1]} 2. c3 {[%clk 0:02:59.2]} 2...
d5 {[%clk 0:02:57.1]} 3. exd5 {[%clk 0:02:59.2]} 3... Qxd5 {[%clk 0:02:58]} 4.
d4 {[%clk 0:02:58.9]} 4... Nc6 {[%clk 0:02:57.3]} 5. Nf3 {[%clk 0:02:58.8]} 5...
Bg4 {[%clk 0:02:56.2]} 6. Be2 {[%clk 0:02:57.8]} 6... cxd4 {[%clk 0:02:56.5]} 7.
cxd4 {[%clk 0:02:56.1]} 7... e6 {[%clk 0:02:57]} 8. O-O {[%clk 0:02:53.1]} 8...
Nf6 {[%clk 0:02:54.9]} 9. Nc3 {[%clk 0:02:52.5]} 9... Qd8 {[%clk 0:02:52.9]} 10.
h3 {[%clk 0:02:20.1]} 10... Bh5 {[%clk 0:02:39.6]} 11. Be3 {[%clk 0:02:19.9]}
11... Be7 {[%clk 0:02:38.1]} 12. Ne5 {[%clk 0:02:20.1]} 12... Bxe2 {[%clk
0:02:37.2]} 13. Qxe2 {[%clk 0:02:21]} 13... O-O {[%clk 0:02:34.2]} 14. Rfd1
{[%clk 0:02:20]} 14... Rc8 {[%clk 0:02:30.8]} 15. Nxc6 {[%clk 0:02:10.1]} 15...
Rxc6 {[%clk 0:02:29.5]} 16. d5 {[%clk 0:02:10.2]} 16... Nxd5 {[%clk 0:02:27.5]}
17. Nxd5 {[%clk 0:02:09]} 17... exd5 {[%clk 0:02:28.4]} 18. Qb5 {[%clk
0:01:41.9]} 18... Qc8 {[%clk 0:02:24.4]} 19. Rxd5 {[%clk 0:01:39.3]} 19... a6
{[%clk 0:02:24.8]} 20. Qd3 {[%clk 0:01:38.7]} 20... Bf6 {[%clk 0:02:23.9]} 21.
Bd4 {[%clk 0:01:37.3]} 21... Rc1+ {[%clk 0:02:08]} 22. Rxc1 {[%clk 0:01:36.2]}
22... Qxc1+ {[%clk 0:02:08.9]} 23. Kh2 {[%clk 0:01:36.6]} 23... Qc7+ {[%clk
0:02:01.9]} 24. g3 {[%clk 0:01:34]} 24... Bxd4 {[%clk 0:02:00.2]} 25. Qxd4
{[%clk 0:01:32]} 25... h6 {[%clk 0:02:00.6]} 26. Rd7 {[%clk 0:01:30.4]} 26...
Qc6 {[%clk 0:02:01]} 27. Rd6 {[%clk 0:01:21.3]} 27... Qf3 {[%clk 0:01:58.7]} 28.
Rd8 {[%clk 0:01:16]} 28... Rxd8 {[%clk 0:01:55.7]} 29. Qxd8+ {[%clk 0:01:16.9]}
29... Kh7 {[%clk 0:01:56]} 30. Qd4 {[%clk 0:01:17.3]} 30... f5 {[%clk
0:01:54.8]} 31. h4 {[%clk 0:01:17.3]} 31... a5 {[%clk 0:01:43.6]} 32. a4 {[%clk
0:01:16.1]} 32... f4 {[%clk 0:01:31.8]} 33. gxf4 {[%clk 0:00:48.5]} 33... b6
{[%clk 0:01:28.3]} 34. Qe3 {[%clk 0:00:44.9]} 34... Qg4 {[%clk 0:01:27.1]} 35.
Qd3+ {[%clk 0:00:44.6]} 35... Kh8 {[%clk 0:01:25.3]} 36. Qd8+ {[%clk 0:00:44.4]}
36... Kh7 {[%clk 0:01:25.3]} 37. Qd3+ {[%clk 0:00:44.8]} 37... Kg8 {[%clk
0:01:23.4]} 38. Qd8+ {[%clk 0:00:32]} 38... Kf7 {[%clk 0:01:22]} 39. Qd5+ {[%clk
0:00:31.7]} 39... Kg6 {[%clk 0:01:16.7]} 40. Qd6+ {[%clk 0:00:12.3]} 40... Kh5
{[%clk 0:01:09.7]} 41. Qxb6 {[%clk 0:00:13.2]} 41... Qxf4+ {[%clk 0:01:09]} 42.
Kg2 {[%clk 0:00:13.2]} 42... Qg4+ {[%clk 0:01:09]} 43. Kf1 {[%clk 0:00:13.4]}
43... Qxa4 {[%clk 0:01:05]} 44. Qb7 {[%clk 0:00:06.3]} 44... Qd1+ {[%clk
0:01:02.8]} 45. Kg2 {[%clk 0:00:06.3]} 45... Qg4+ {[%clk 0:01:03.5]} 46. Kf1
{[%clk 0:00:06.7]} 46... a4 {[%clk 0:01:02.5]} 47. Qf7+ {[%clk 0:00:06.3]} 47...
Kxh4 {[%clk 0:01:01.7]} 48. Qe7+ {[%clk 0:00:04.4]} 48... g5 {[%clk 0:01:02]}
49. Qh7 {[%clk 0:00:04.2]} 49... h5 {[%clk 0:01:00.6]} 50. Qd3 {[%clk
0:00:04.7]} 50... Qh3+ {[%clk 0:00:59.1]} 0-1

[Event "Early-Titled-Tuesday-Blitz-April-16-2024"]
[Site "Chess.com"]
[Date "2024.04.16"]
[Round "1"]
[White "milovichalex"]
[Black "FoggyMorning"]
[Result "0-1"]
[WhiteElo "2303"]
[BlackElo "2618"]
[TimeControl "180+1"]
[EndTime "8:07:10 PDT"]
[Termination "FoggyMorning won by resignation"]

1. e4 {[%clk 0:03:00.2]} 1... e6 {[%clk 0:02:59.9]} 2. Nf3 {[%clk 0:02:59.6]}
2... d5 {[%clk 0:03:00.1]} 3. e5 {[%clk 0:03:00.2]} 3... c5 {[%clk 0:02:58]} 4.
b4 {[%clk 0:03:00.3]} 4... cxb4 {[%clk 0:02:57.4]} 5. a3 {[%clk 0:03:00.4]} 5...
bxa3 {[%clk 0:02:56]} 6. d4 {[%clk 0:03:00.4]} 6... Nc6 {[%clk 0:02:55.7]} 7. c3
{[%clk 0:03:00.8]} 7... Bd7 {[%clk 0:02:56]} 8. Bd3 {[%clk 0:03:00.4]} 8... Rc8
{[%clk 0:02:55.2]} 9. Ng5 {[%clk 0:02:54.6]} 9... Be7 {[%clk 0:02:02.9]} 10. h4
{[%clk 0:02:19.6]} 10... Nh6 {[%clk 0:01:34.7]} 11. Qf3 {[%clk 0:01:55.2]} 11...
Nxd4 {[%clk 0:01:31.2]} 12. Qf4 {[%clk 0:01:06.1]} 12... Nb3 {[%clk 0:01:17.2]}
13. Ra2 {[%clk 0:00:42.4]} 13... Nxc1 {[%clk 0:01:17.2]} 14. Qxc1 {[%clk
0:00:42]} 14... Qb6 {[%clk 0:01:01.8]} 15. O-O {[%clk 0:00:35]} 15... Qb3 {[%clk
0:00:46.3]} 16. Qd2 {[%clk 0:00:19.8]} 16... Ng4 {[%clk 0:00:28.7]} 17. Qf4
{[%clk 0:00:17.6]} 17... Bxg5 {[%clk 0:00:28.8]} 18. Qxg4 {[%clk 0:00:16.2]}
18... Qxa2 {[%clk 0:00:27.6]} 19. Qxg5 {[%clk 0:00:16.3]} 19... Kf8 {[%clk
0:00:20]} 20. f4 {[%clk 0:00:13.9]} 20... h6 {[%clk 0:00:16.3]} 21. Qg3 {[%clk
0:00:13.5]} 21... Qb2 {[%clk 0:00:07.6]} 22. f5 {[%clk 0:00:12.3]} 22... exf5
{[%clk 0:00:08.5]} 23. e6 {[%clk 0:00:12.3]} 23... Qb6+ {[%clk 0:00:08.6]} 24.
Kh1 {[%clk 0:00:11.8]} 24... Bxe6 {[%clk 0:00:09.1]} 25. Bxf5 {[%clk 0:00:11.6]}
25... a2 {[%clk 0:00:08.4]} 26. Bxe6 {[%clk 0:00:11]} 26... Qxe6 {[%clk
0:00:08.1]} 27. Na3 {[%clk 0:00:10.6]} 27... Kg8 {[%clk 0:00:06.6]} 28. Nb5
{[%clk 0:00:10.3]} 28... Qa6 {[%clk 0:00:06.4]} 29. Nd4 {[%clk 0:00:09]} 29...
a1=Q {[%clk 0:00:06.4]} 30. Kh2 {[%clk 0:00:09.9]} 30... Q1xf1 {[%clk
0:00:06.4]} 31. Nf5 {[%clk 0:00:09.2]} 31... Qxf5 {[%clk 0:00:06.7]} 32. Qg4
{[%clk 0:00:09.4]} 32... Qxg4 {[%clk 0:00:06.6]} 0-1

[Event "Early-Titled-Tuesday-Blitz-April-16-2024"]
[Site "Chess.com"]
[Date "2024.04.16"]
[Round "1"]
[White "RandomNoob04"]
[Black "AsselLesbekova"]
[Result "0-1"]
[WhiteElo "2650"]
[BlackElo "2394"]
[TimeControl "180+1"]
[EndTime "8:07:11 PDT"]
[Termination "AsselLesbekova won by resignation"]

1. e4 {[%clk 0:02:59.9]} 1... e5 {[%clk 0:03:00]} 2. d4 {[%clk 0:02:58.8]} 2...
Nf6 {[%clk 0:02:59.8]} 3. dxe5 {[%clk 0:02:52.5]} 3... Nxe4 {[%clk 0:03:00]} 4.
Bc4 {[%clk 0:02:44.7]} 4... Ng5 {[%clk 0:02:47.1]} 5. Nf3 {[%clk 0:02:37.1]}
5... Ne6 {[%clk 0:02:39.5]} 6. Nc3 {[%clk 0:02:36.1]} 6... d6 {[%clk 0:02:33.2]}
7. Be3 {[%clk 0:02:31.3]} 7... Nc6 {[%clk 0:02:27.3]} 8. exd6 {[%clk 0:02:24.3]}
8... Bxd6 {[%clk 0:02:26.7]} 9. Qd2 {[%clk 0:02:23.3]} 9... Ne5 {[%clk
0:02:17.2]} 10. Nxe5 {[%clk 0:02:19]} 10... Bxe5 {[%clk 0:02:18.1]} 11. Qxd8+
{[%clk 0:02:19.4]} 11... Nxd8 {[%clk 0:02:17.3]} 12. O-O-O {[%clk 0:02:19.8]}
12... Bxc3 {[%clk 0:02:10.6]} 13. bxc3 {[%clk 0:02:20.7]} 13... Be6 {[%clk
0:02:11]} 14. Be2 {[%clk 0:02:17]} 14... Nc6 {[%clk 0:01:43.2]} 15. Bf4 {[%clk
0:02:12]} 15... Rc8 {[%clk 0:01:26.8]} 16. Bf3 {[%clk 0:02:02.4]} 16... O-O
{[%clk 0:01:23.4]} 17. Kb2 {[%clk 0:02:02.3]} 17... Na5 {[%clk 0:01:20.6]} 18.
Rd4 {[%clk 0:01:57.4]} 18... Nc4+ {[%clk 0:01:15.6]} 19. Kc1 {[%clk 0:01:54.8]}
19... h6 {[%clk 0:01:09.2]} 20. Bxb7 {[%clk 0:01:53.5]} 20... Rb8 {[%clk
0:01:02.4]} 21. Ba6 {[%clk 0:01:47.8]} 21... Na3 {[%clk 0:01:00.3]} 22. Kd2
{[%clk 0:01:48.3]} 22... Rb2 {[%clk 0:00:54.8]} 23. Rc1 {[%clk 0:01:34.3]} 23...
Rxa2 {[%clk 0:00:41.2]} 24. Bd3 {[%clk 0:01:08.4]} 24... c5 {[%clk 0:00:36.7]}
25. Re4 {[%clk 0:01:08.9]} 25... c4 {[%clk 0:00:31.5]} 26. Be2 {[%clk
0:01:08.6]} 26... Bf5 {[%clk 0:00:25.4]} 27. Rd4 {[%clk 0:01:05.5]} 27... Nxc2
{[%clk 0:00:25.6]} 28. Rxc2 {[%clk 0:00:44.7]} 28... Rxc2+ {[%clk 0:00:24.2]}
29. Kd1 {[%clk 0:00:45.4]} 29... Rxc3 {[%clk 0:00:18.2]} 30. Bxc4 {[%clk
0:00:45.9]} 30... g5 {[%clk 0:00:17.2]} 31. Be5 {[%clk 0:00:44.5]} 31... Rc8
{[%clk 0:00:15.7]} 32. Ba6 {[%clk 0:00:43.8]} 32... Rc1+ {[%clk 0:00:14.6]} 33.
Kd2 {[%clk 0:00:44.3]} 33... R8c2+ {[%clk 0:00:14.8]} 34. Ke3 {[%clk 0:00:44.9]}
34... Re1+ {[%clk 0:00:15.3]} 35. Kf3 {[%clk 0:00:43.6]} 35... Rxe5 {[%clk
0:00:15.8]} 36. g4 {[%clk 0:00:41.3]} 36... Rc3+ {[%clk 0:00:13.4]} 37. Kg2
{[%clk 0:00:40.7]} 37... Be4+ {[%clk 0:00:13.5]} 38. Kf1 {[%clk 0:00:40.3]}
38... Bf3 {[%clk 0:00:12.5]} 39. Rc4 {[%clk 0:00:25.4]} 39... Rxc4 {[%clk
0:00:11]} 40. Bxc4 {[%clk 0:00:26.3]} 40... Rc5 {[%clk 0:00:11.4]} 0-1

[Event "Early-Titled-Tuesday-Blitz-April-16-2024"]
[Site "Chess.com"]
[Date "2024.04.16"]
[Round "1"]
[White "SchmakAttack"]
[Black "becemix"]
[Result "1-0"]
[WhiteElo "2836"]
[BlackElo "2473"]
[TimeControl "180+1"]
[EndTime "8:07:12 PDT"]
[Termination "SchmakAttack won on time"]

1. d4 {[%clk 0:03:00.9]} 1... d5 {[%clk 0:02:54.7]} 2. c4 {[%clk 0:02:59.2]}
2... e6 {[%clk 0:02:51.7]} 3. Nc3 {[%clk 0:02:57.6]} 3... c6 {[%clk 0:02:50.9]}
4. e4 {[%clk 0:02:56]} 4... dxe4 {[%clk 0:02:50.4]} 5. Nxe4 {[%clk 0:02:56.9]}
5... Bb4+ {[%clk 0:02:50.1]} 6. Nc3 {[%clk 0:02:57.5]} 6... Nf6 {[%clk
0:02:46.5]} 7. Nf3 {[%clk 0:02:50.2]} 7... c5 {[%clk 0:02:44.2]} 8. Be2 {[%clk
0:02:34.8]} 8... Nc6 {[%clk 0:02:42.8]} 9. Be3 {[%clk 0:02:34.4]} 9... Bxc3+
{[%clk 0:02:39.3]} 10. bxc3 {[%clk 0:02:34.5]} 10... cxd4 {[%clk 0:02:39.5]} 11.
cxd4 {[%clk 0:02:33]} 11... O-O {[%clk 0:02:33.2]} 12. O-O {[%clk 0:02:31.3]}
12... b6 {[%clk 0:02:33.6]} 13. Bg5 {[%clk 0:02:05.3]} 13... Bb7 {[%clk
0:02:31.2]} 14. Re1 {[%clk 0:01:49.3]} 14... h6 {[%clk 0:02:29.8]} 15. Bh4
{[%clk 0:01:49.1]} 15... g5 {[%clk 0:02:29.6]} 16. Bg3 {[%clk 0:01:48.2]} 16...
Ne4 {[%clk 0:02:24.4]} 17. d5 {[%clk 0:01:38.1]} 17... exd5 {[%clk 0:02:18.5]}
18. cxd5 {[%clk 0:01:38.4]} 18... Nxg3 {[%clk 0:02:05.1]} 19. hxg3 {[%clk
0:01:34.6]} 19... Nb4 {[%clk 0:02:02.1]} 20. d6 {[%clk 0:01:31.5]} 20... Nd5
{[%clk 0:01:58.6]} 21. Ba6 {[%clk 0:01:21.8]} 21... Bxa6 {[%clk 0:01:39.1]} 22.
Qxd5 {[%clk 0:01:21.4]} 22... Qf6 {[%clk 0:01:39.6]} 23. Rac1 {[%clk 0:01:03.1]}
23... Qg6 {[%clk 0:00:26.8]} 24. Rc7 {[%clk 0:00:37.9]} 24... Qd3 {[%clk
0:00:24.5]} 25. Qxd3 {[%clk 0:00:33.3]} 25... Bxd3 {[%clk 0:00:25.4]} 26. Nd4
{[%clk 0:00:33.5]} 26... Rad8 {[%clk 0:00:21.1]} 27. d7 {[%clk 0:00:33.7]} 27...
Kg7 {[%clk 0:00:07.4]} 28. Rxa7 {[%clk 0:00:24.6]} 28... Kf6 {[%clk 0:00:01.5]}
29. Nc6 {[%clk 0:00:24.9]} 29... Bf5 {[%clk 0:00:01.7]} 30. Nxd8 {[%clk
0:00:24.8]} 30... Rxd8 {[%clk 0:00:02.6]} 31. Rd1 {[%clk 0:00:15.5]} 31... Ke7
{[%clk 0:00:02.5]} 32. Rb7 {[%clk 0:00:12.4]} 32... Bxd7 {[%clk 0:00:01.2]} 33.
Rxb6 {[%clk 0:00:12.4]} 1-0